fUST/lending_fUST_20240924
["ID","MTS","AMOUNT","RATE_DAILY","PERIOD"]
[339058808,1727185840992,-107394.639312,0.00026797,4]
[339058810,1727185841001,-71593.8073348,0.00026797,4]
[339058812,1727185841012,-150.112233,0.000268,8]
[339058814,1727185841021,-150.112233,0.000268,9]
[339058816,1727185841030,-2000.0,0.00026807,2]
[339058818,1727185841039,-152.10501941,0.0002689,7]
[339058820,1727185841049,-152.10501941,0.0002689,7]
[339058822,1727185841058,-152.10501941,0.0002689,7]
[339058824,1727185841068,-152.10501941,0.0002689,7]
[339058826,1727185841077,-152.10501941,0.0002689,7]
[339058828,1727185841086,-152.10501941,0.0002689,7]
[339058831,1727185841096,-152.10501941,0.0002689,7]
[339058832,1727185841104,-152.10501941,0.0002689,7]
[339058834,1727185841114,-152.10501941,0.0002689,7]
[339058836,1727185841123,-152.6,0.0002689,7]
[339058838,1727185841132,-304.28503882,0.0002689,7]
[339058840,1727185841141,-304.28503882,0.0002689,7]
[339058842,1727185841150,-304.28503882,0.0002689,7]
[339058844,1727185841160,-304.28503882,0.0002689,7]
[339058847,1727185841169,-304.28503882,0.0002689,7]
[339058849,1727185841179,-304.28503882,0.0002689,7]
[339058851,1727185841188,-304.28503882,0.0002689,7]
[339058853,1727185841197,-304.28503882,0.0002689,7]
[339058855,1727185841206,-304.28503882,0.0002689,7]
[339058856,1727185841215,-304.28503882,0.0002689,7]
[339058859,1727185841225,-304.28503882,0.0002689,7]
[339058861,1727185841235,-304.28503882,0.0002689,7]
[339058863,1727185841244,-304.28503882,0.0002689,7]
[339058865,1727185841254,-304.28503882,0.0002689,7]
[339058867,1727185841268,-304.28503882,0.0002689,7]
[339058869,1727185841279,-304.28503882,0.0002689,7]
[339058871,1727185841288,-304.28503882,0.0002689,7]
[339058873,1727185841298,-304.28503882,0.0002689,7]
[339058875,1727185841307,-212.05327448,0.0002689,7]
[339058877,1727185841317,-212.55,0.0002689,7]
[339058879,1727185841328,-154.35692689,0.0002689,7]
[339058882,1727185841340,-154.35692689,0.0002689,7]
[339058884,1727185841354,-154.35692689,0.0002689,7]
[339058886,1727185841365,-154.35692689,0.0002689,7]
[339058888,1727185841375,-154.35692689,0.0002689,7]
[339058890,1727185841384,-154.35692689,0.0002689,7]
[339058892,1727185841395,-154.35692689,0.0002689,7]
[339058894,1727185841404,-154.35692689,0.0002689,7]
[339058896,1727185841413,-154.35692689,0.0002689,7]
[339058898,1727185841424,-154.35692689,0.0002689,7]
[339058900,1727185841434,-174.42764888,0.00026922,2]
[339058902,1727185841443,-151.62119636,0.00026973,2]
[339058904,1727185841452,-150.0,0.00026973,2]
[339058906,1727185841461,-538.2,0.00026989,2]
[339058908,1727185841471,-538.2,0.00026989,2]
[339058910,1727185841482,-538.2,0.00026989,2]
[339058912,1727185841491,-538.2,0.00026989,2]
[339058914,1727185841500,-538.2,0.00026989,2]
[339058917,1727185841511,-538.2,0.00026989,2]
[339058919,1727185841520,-538.2,0.00026989,2]
[339058921,1727185841529,-538.2,0.00026989,2]
[339058923,1727185841538,-538.2,0.00026989,2]
[339058924,1727185841547,-538.2,0.00026989,2]
[339058927,1727185841556,-143187.61467,0.0002699,4]
[339058928,1727185841566,-151.0,0.0002699,7]
[339058930,1727185841575,-151.0,0.0002699,7]
[339058933,1727185841584,-151.0,0.0002699,7]
[339058935,1727185841593,-298.58273,0.0002699,7]
[339058937,1727185841603,-298.58273,0.0002699,7]
[339058939,1727185841612,-6692.3739639,0.00026992,2]
[339058941,1727185841621,-182222.1965,0.00027,2]
[339058943,1727185841630,-150.112233,0.00027,6]
[339058945,1727185841640,-151.0,0.00027,7]
[339058958,1727185841757,-151.0,0.00027,7]
[339058960,1727185841767,-151.0,0.00027,7]
[339058962,1727185841776,-298.58273,0.00027,7]
[339058965,1727185841786,-298.58273,0.00027,7]
[339058967,1727185841796,-324.20641,0.00027,7]
[339058969,1727185841805,-324.20641,0.00027,7]
[339058971,1727185841814,-304.28503882,0.00027024,7]
[339058972,1727185841823,-587.0,0.00027125,2]
[339058974,1727185841832,-150.112233,0.000272,7]
[339058976,1727185841841,-174.42764888,0.00027246,2]
[339058979,1727185841850,-6692.3739639,0.0002725,2]
[339058980,1727185841859,-304.78,0.00027297,7]
[339058983,1727185841868,-154.85,0.00027297,7]
[339058984,1727185841877,-3264.41133894,0.00027319,2]
[339058987,1727185841888,-1000.0,0.00027321,2]
[339058989,1727185841897,-1037.25205191,0.00027321,2]
[339058991,1727185841906,-373.06051716,0.00027321,2]
[339058993,1727185841915,-500.0,0.00027373,2]
[339058995,1727185841925,-500.0,0.00027397,2]
[339058997,1727185841934,-500.0,0.00027397,2]
[339058999,1727185841943,-500.0,0.00027397,2]
[339059001,1727185841953,-500.0,0.00027397,2]
[339059003,1727185841962,-502.56315753,0.00027397,2]
[339059004,1727185841971,-502.73556856,0.00027397,2]
[339059006,1727185841980,-786.36,0.00027397,2]
[339059008,1727185841989,-500.0,0.00027397,2]
[339059010,1727185841999,-500.0,0.00027397,2]
[339059012,1727185842008,-500.0,0.00027397,2]
[339059015,1727185842020,-500.0,0.00027397,2]
[339059017,1727185842029,-500.0,0.00027397,2]
[339059018,1727185842038,-822.91,0.00027397,2]
[339059020,1727185842047,-500.0,0.00027397,2]
[339059022,1727185842057,-500.0,0.00027397,2]
[339059024,1727185842066,-502.20498181,0.00027397,2]
[339059026,1727185842075,-664.95,0.00027397,2]
[339059028,1727185842085,-500.0,0.00027397,2]
[339059030,1727185842094,-500.0,0.00027397,2]
[339059032,1727185842104,-500.0,0.00027397,2]
[339059034,1727185842113,-500.0,0.00027397,5]
[339059036,1727185842122,-720.13,0.00027397,2]
[339059038,1727185842131,-503.52955682,0.00027397,2]
[339059040,1727185842140,-500.0,0.00027397,2]
[339059042,1727185842149,-500.0,0.00027397,2]
[339059044,1727185842158,-637.03,0.00027397,2]
[339059046,1727185842167,-856.26,0.00027397,2]
[339059048,1727185842176,-501.78708493,0.00027397,2]
[339059050,1727185842184,-503.227584,0.00027397,2]
[339059052,1727185842194,-500.99455165,0.00027397,2]
[339059054,1727185842203,-500.0,0.00027397,2]
[339059056,1727185842212,-500.0,0.00027397,2]
[339059058,1727185842221,-500.0,0.00027397,2]
[339059060,1727185842230,-465.18182412,0.00027397,2]
[339059062,1727185842239,-500.96307674,0.00027397,2]
[339059064,1727185842248,-528.4,0.00027397,2]
[339059066,1727185842257,-500.0,0.00027397,2]
[339059067,1727185842271,-282.27452365,0.00027397,2]
[339059069,1727185842280,-500.0,0.00027397,2]
[339059071,1727185842289,-500.0,0.00027397,2]
[339059073,1727185842298,-500.0,0.00027397,2]
[339059076,1727185842308,-500.0,0.00027397,2]
[339059078,1727185842317,-500.0,0.00027397,2]
[339059080,1727185842326,-500.0,0.00027397,2]
[339059081,1727185842336,-506.90552393,0.00027397,2]
[339059083,1727185842347,-502.85822645,0.00027397,2]
[339059086,1727185842357,-500.0,0.00027397,2]
[339059088,1727185842366,-500.0,0.00027397,2]
[339059090,1727185842376,-406.1539444,0.00027397,2]
[339059092,1727185842385,-500.0,0.00027397,2]
[339059094,1727185842394,-500.0,0.00027397,2]
[339059096,1727185842403,-500.0,0.00027397,2]
[339059098,1727185842412,-505.00347395,0.00027397,2]
[339059100,1727185842421,-500.0,0.00027397,2]
[339059102,1727185842431,-508.7672177,0.00027397,2]
[339059104,1727185842440,-500.0,0.00027397,2]
[339059106,1727185842450,-500.0,0.00027397,2]
[339059108,1727185842459,-500.0,0.00027397,2]
[339059110,1727185842468,-500.0,0.00027397,2]
[339059111,1727185842477,-500.0,0.00027397,2]
[339059113,1727185842487,-500.0,0.00027397,2]
[339059116,1727185842497,-500.0,0.00027397,2]
[339059118,1727185842506,-500.0,0.00027397,2]
[339059120,1727185842520,-550.65,0.00027397,2]
[339059122,1727185842530,-500.0,0.00027397,2]
[339059124,1727185842539,-500.0,0.00027397,2]
[339059126,1727185842549,-500.0,0.00027397,2]
[339059128,1727185842558,-500.0,0.00027397,2]
[339059130,1727185842567,-500.0,0.00027397,2]
[339059132,1727185842578,-500.0,0.00027397,2]
[339059134,1727185842587,-500.0,0.00027397,2]
[339059136,1727185842598,-500.0,0.00027397,2]
[339059138,1727185842607,-500.0,0.00027397,2]
[339059140,1727185842617,-500.0,0.00027397,2]
[339059142,1727185842625,-500.0,0.00027397,2]
[339059144,1727185842634,-500.0,0.00027397,2]
[339059146,1727185842644,-500.80234997,0.00027397,2]
[339059148,1727185842653,-500.0,0.00027397,2]
[339059150,1727185842662,-500.0,0.00027397,2]
[339059151,1727185842671,-579.32419548,0.00027397,2]
[339059153,1727185842680,-500.0,0.00027397,2]
[339059155,1727185842689,-500.0,0.00027397,2]
[339059157,1727185842699,-500.0,0.00027397,2]
[339059159,1727185842708,-500.0,0.00027397,2]
[339059161,1727185842717,-500.0,0.00027397,2]
[339059163,1727185842726,-574.18,0.00027397,2]
[339059165,1727185842735,-507.03606409,0.00027397,2]
[339059167,1727185842744,-500.0,0.00027397,2]
[339059169,1727185842755,-500.0,0.00027397,2]
[339059171,1727185842768,-500.0,0.00027397,2]
[339059173,1727185842778,-810.85,0.00027397,2]
[339059175,1727185842787,-508.86854625,0.00027397,2]
[339059177,1727185842797,-501.74697702,0.00027397,2]
[339059179,1727185842806,-341.54299615,0.00027397,2]
[339059181,1727185842815,-500.0,0.00027397,2]
[339059183,1727185842823,-500.0,0.00027397,2]
[339059185,1727185842833,-500.0,0.00027397,2]
[339059187,1727185842842,-500.0,0.00027397,2]
[339059189,1727185842851,-500.0,0.00027397,2]
[339059191,1727185842860,-500.0,0.00027397,2]
[339059193,1727185842870,-500.0,0.00027397,2]
[339059195,1727185842880,-500.0,0.00027397,2]
[339059197,1727185842889,-500.0,0.00027397,2]
[339059199,1727185842898,-500.0,0.00027397,2]
[339059201,1727185842908,-322.81617905,0.00027397,2]
[339059203,1727185842917,-500.0,0.00027397,2]
[339059205,1727185842926,-500.0,0.00027397,2]
[339059207,1727185842935,-536.26,0.00027397,2]
[339059209,1727185842945,-500.0,0.00027397,2]
[339059211,1727185842955,-508.27266083,0.00027397,2]
[339059213,1727185842964,-500.0,0.00027397,2]
[339059215,1727185842974,-500.0,0.00027397,2]
[339059217,1727185842983,-500.0,0.00027397,2]
[339059219,1727185842992,-779.29,0.00027397,2]
[339059221,1727185843001,-500.0,0.00027397,2]
[339059223,1727185843013,-500.0,0.00027397,2]
[339059225,1727185843024,-290.43019461,0.00027397,2]
[339059227,1727185843033,-502.20560102,0.00027397,2]
[339059229,1727185843043,-500.20415554,0.00027397,2]
[339059231,1727185843052,-508.17421993,0.00027397,2]
[339059233,1727185843061,-500.0,0.00027397,2]
[339059235,1727185843071,-500.0,0.00027397,2]
[339059237,1727185843080,-500.84863285,0.00027397,2]
[339059239,1727185843089,-500.83692904,0.00027397,2]
[339059241,1727185843098,-500.0,0.00027397,2]
[339059243,1727185843108,-981.24,0.00027397,2]
[339059245,1727185843117,-500.0,0.00027397,2]
[339059247,1727185843126,-500.0,0.00027397,2]
[339059250,1727185843135,-500.0,0.00027397,2]
[339059252,1727185843144,-503.01175223,0.00027397,2]
[339059255,1727185843154,-500.0,0.00027397,2]
[339059257,1727185843163,-500.0,0.00027397,2]
[339059259,1727185843172,-816.00322588,0.00027397,5]
[339059260,1727185843181,-500.0,0.00027397,2]
[339059262,1727185843191,-500.0,0.00027397,2]
[339059264,1727185843200,-668.98,0.00027397,2]
[339059266,1727185843209,-500.0,0.00027397,2]
[339059268,1727185843219,-500.0,0.00027397,2]
[339059270,1727185843230,-502.35322054,0.00027397,2]
[339059273,1727185843242,-504.82178185,0.00027397,2]
[339059275,1727185843252,-500.0,0.00027397,2]
[339059278,1727185843263,-667.57,0.00027397,2]
[339059281,1727185843273,-1224.72,0.00027397,2]
[339059283,1727185843282,-500.0,0.00027397,2]
[339059285,1727185843291,-500.0,0.00027397,2]
[339059287,1727185843302,-846.35,0.00027397,2]
[339059289,1727185843314,-523.09,0.00027397,2]
[339059291,1727185843324,-500.0,0.00027397,2]
[339059293,1727185843334,-512.1758668,0.00027397,2]
[339059295,1727185843348,-500.0,0.00027397,2]
[339059297,1727185843358,-500.0,0.00027397,2]
[339059299,1727185843367,-832.28,0.00027397,2]
[339059301,1727185843377,-539.78,0.00027397,2]
[339059303,1727185843386,-500.0,0.00027397,2]
[339059305,1727185843395,-505.83589696,0.00027397,2]
[339059307,1727185843404,-540.03372457,0.00027397,2]
[339059309,1727185843414,-500.0,0.00027397,2]
[339059311,1727185843425,-500.0,0.00027397,2]
[339059313,1727185843434,-500.0,0.00027397,2]
[339059314,1727185843443,-500.0,0.00027397,2]
[339059316,1727185843452,-500.0,0.00027397,2]
[339059318,1727185843461,-501.37456617,0.00027397,2]
[339059320,1727185843469,-500.61287124,0.00027397,2]
[339059322,1727185843478,-500.0,0.00027397,2]
[339059324,1727185843488,-500.0,0.00027397,2]
[339059326,1727185843497,-834.7,0.00027397,2]
[339059328,1727185843506,-500.0,0.00027397,2]
[339059330,1727185843517,-500.0,0.00027397,2]
[339059332,1727185843526,-500.0,0.00027397,2]
[339059334,1727185843535,-500.0,0.00027397,2]
[339059336,1727185843545,-503.39741552,0.00027397,2]
[339059338,1727185843554,-882.2,0.00027397,2]
[339059340,1727185843564,-500.0,0.00027397,2]
[339059342,1727185843573,-626.80508275,0.00027397,2]
[339059344,1727185843583,-356.95083833,0.00027397,2]
[339059345,1727185843592,-500.0,0.00027397,2]
[339059347,1727185843601,-500.0,0.00027397,2]
[339059349,1727185843611,-512.39775431,0.00027397,2]
[339059351,1727185843620,-500.0,0.00027397,2]
[339059353,1727185843630,-500.0,0.00027397,2]
[339059355,1727185843639,-500.0,0.00027397,2]
[339059357,1727185843648,-500.0,0.00027397,2]
[339059359,1727185843657,-501.88590245,0.00027397,2]
[339059361,1727185843667,-500.0,0.00027397,2]
[339059363,1727185843676,-700.78,0.00027397,2]
[339059365,1727185843686,-500.0,0.00027397,2]
[339059368,1727185843695,-923.88,0.00027397,2]
[339059370,1727185843705,-500.0,0.00027397,2]
[339059372,1727185843715,-500.0,0.00027397,2]
[339059374,1727185843724,-500.0,0.00027397,2]
[339059376,1727185843734,-500.0,0.00027397,2]
[339059378,1727185843743,-506.67560038,0.00027397,2]
[339059380,1727185843753,-500.0,0.00027397,2]
[339059382,1727185843764,-500.0,0.00027397,2]
[339059384,1727185843773,-502.98259845,0.00027397,2]
[339059386,1727185843782,-500.0,0.00027397,2]
[339059388,1727185843792,-506.34420271,0.00027397,2]
[339059390,1727185843801,-500.0,0.00027397,2]
[339059392,1727185843810,-699.55,0.00027397,2]
[339059394,1727185843820,-500.0,0.00027397,2]
[339059395,1727185843829,-500.0,0.00027397,2]
[339059397,1727185843838,-500.0,0.00027397,2]
[339059399,1727185843848,-500.0,0.00027397,2]
[339059409,1727185843961,-501.98478196,0.00027397,2]
[339059410,1727185843971,-500.0,0.00027397,2]
[339059411,1727185843980,-501.52522531,0.00027397,2]
[339059412,1727185843989,-500.0,0.00027397,2]
[339059413,1727185843999,-502.46754286,0.00027397,2]
[339059414,1727185844008,-500.0,0.00027397,2]
[339059415,1727185844020,-500.0,0.00027397,2]
[339059416,1727185844030,-500.0,0.00027397,2]
[339059417,1727185844039,-500.0,0.00027397,2]
[339059418,1727185844048,-500.0,0.00027397,2]
[339059419,1727185844057,-501.42576318,0.00027397,2]
[339059420,1727185844066,-949.76,0.00027397,2]
[339059421,1727185844074,-602.11838066,0.00027397,2]
[339059422,1727185844083,-500.0,0.00027397,2]
[339059423,1727185844093,-341.33408448,0.00027397,2]
[339059425,1727185844102,-500.0,0.00027397,2]
[339059426,1727185844111,-500.0,0.00027397,2]
[339059428,1727185844121,-500.0,0.00027397,2]
[339059430,1727185844130,-500.0,0.00027397,2]
[339059432,1727185844139,-500.0,0.00027397,2]
[339059434,1727185844148,-603.71,0.00027397,2]
[339059436,1727185844157,-503.75469109,0.00027397,2]
[339059438,1727185844166,-500.0,0.00027397,2]
[339059440,1727185844175,-503.95754927,0.00027397,2]
[339059442,1727185844184,-228.00431044,0.00027397,2]
[339059443,1727185844195,-524.94279489,0.00027397,2]
[339059445,1727185844204,-500.0,0.00027397,2]
[339059447,1727185844214,-500.0,0.00027397,2]
[339059449,1727185844223,-500.0,0.00027397,2]
[339059451,1727185844233,-500.0,0.00027397,2]
[339059453,1727185844242,-500.0,0.00027397,2]
[339059455,1727185844251,-192.95584968,0.00027397,2]
[339059685,1727185846456,-307.04415032,0.00027397,2]
[339059687,1727185846466,-500.83113458,0.00027397,2]
[339059688,1727185846475,-683.94,0.00027397,2]
[339059689,1727185846485,-940.34,0.00027397,2]
[339059690,1727185846495,-500.0,0.00027397,2]
[339059691,1727185846505,-1000.0,0.00027397,2]
[339059692,1727185846514,-500.0,0.00027397,2]
[339059694,1727185846525,-503.53250126,0.00027397,2]
[339059696,1727185846534,-500.0,0.00027397,2]
[339059698,1727185846543,-500.0,0.00027397,2]
[339059700,1727185846554,-505.71299705,0.00027397,2]
[339059702,1727185846565,-508.5498565,0.00027397,2]
[339059704,1727185846575,-503.49006281,0.00027397,2]
[339059706,1727185846584,-354.51,0.00027397,2]
[339059708,1727185846593,-797.23,0.00027397,2]
[339059710,1727185846603,-500.0,0.00027397,2]
[339059712,1727185846613,-500.0,0.00027397,2]
[339059714,1727185846622,-523.77,0.00027397,2]
[339059716,1727185846632,-500.0,0.00027397,2]
[339059718,1727185846641,-634.21,0.00027397,2]
[339059720,1727185846651,-500.0,0.00027397,2]
[339059723,1727185846663,-500.0,0.00027397,2]
[339059725,1727185846672,-500.0,0.00027397,2]
[339059727,1727185846682,-500.0,0.00027397,2]
[339059728,1727185846690,-500.0,0.00027397,2]
[339059730,1727185846700,-500.0,0.00027397,2]
[339059732,1727185846709,-500.0,0.00027397,2]
[339059735,1727185846719,-500.0,0.00027397,2]
[339059737,1727185846729,-500.0,0.00027397,2]
[339059739,1727185846740,-500.0,0.00027397,2]
[339059741,1727185846750,-502.22634452,0.00027397,2]
[339059743,1727185846761,-521.4140366,0.00027397,2]
[339059745,1727185846772,-500.0,0.00027397,2]
[339059747,1727185846782,-500.0,0.00027397,2]
[339059749,1727185846792,-500.0,0.00027397,2]
[339059751,1727185846801,-503.88763194,0.00027397,2]
[339059753,1727185846811,-500.0,0.00027397,2]
[339059755,1727185846820,-500.0,0.00027397,2]
[339059757,1727185846830,-500.0,0.00027397,2]
[339059759,1727185846839,-500.0,0.00027397,2]
[339059761,1727185846849,-500.0,0.00027397,2]
[339059763,1727185846859,-500.0,0.00027397,2]
[339059765,1727185846869,-500.0,0.00027397,2]
[339059767,1727185846879,-387.25552718,0.00027397,2]
[339059769,1727185846888,-513.24984296,0.00027397,2]
[339059771,1727185846898,-500.0,0.00027397,2]
[339059773,1727185846907,-500.0,0.00027397,2]
[339059776,1727185846918,-774.11,0.00027397,2]
[339059778,1727185846930,-505.8281104,0.00027397,2]
[339059780,1727185846941,-500.0,0.00027397,2]
[339059782,1727185846953,-500.0,0.00027397,2]
[339059784,1727185846965,-500.0,0.00027397,2]
[339059786,1727185846974,-500.0,0.00027397,2]
[339059788,1727185846983,-500.9365312,0.00027397,2]
[339059790,1727185846993,-500.0,0.00027397,2]
[339059793,1727185847003,-532.41,0.00027397,2]
[339059795,1727185847013,-519.04,0.00027397,2]
[339059797,1727185847027,-994.06,0.00027397,2]
[339059799,1727185847036,-751.74,0.00027397,2]
[339059801,1727185847046,-150.0,0.00027397,2]
[339059803,1727185847056,-641.08,0.00027397,2]
[339059805,1727185847065,-500.0,0.00027397,2]
[339059807,1727185847074,-500.0,0.00027397,2]
[339059809,1727185847083,-500.0,0.00027397,2]
[339059811,1727185847093,-500.0,0.00027397,2]
[339059812,1727185847102,-810.17,0.00027397,2]
[339059814,1727185847111,-500.0,0.00027397,2]
[339059816,1727185847121,-500.0,0.00027397,2]
[339059818,1727185847131,-922.97,0.00027397,2]
[339059820,1727185847140,-503.43398468,0.00027397,2]
[339059822,1727185847150,-500.0,0.00027397,2]
[339059824,1727185847160,-500.0,0.00027397,2]
[339059827,1727185847170,-500.0,0.00027397,2]
[339059828,1727185847179,-500.0,0.00027397,2]
[339059830,1727185847188,-500.0,0.00027397,2]
[339059832,1727185847198,-500.0,0.00027397,2]
[339059835,1727185847208,-1474.2,0.00027397,2]
[339059837,1727185847218,-500.0,0.00027397,2]
[339059839,1727185847230,-675.51,0.00027397,2]
[339059841,1727185847240,-930.14,0.00027397,2]
[339059843,1727185847250,-500.0,0.00027397,2]
[339059845,1727185847260,-623.3,0.00027397,2]
[339059847,1727185847272,-500.0,0.00027397,2]
[339059849,1727185847282,-500.0,0.00027397,2]
[339059851,1727185847291,-3188.19,0.00027397,2]
[339059853,1727185847300,-500.0,0.00027397,2]
[339059855,1727185847310,-522.8,0.00027397,2]
[339059857,1727185847320,-500.0,0.00027397,2]
[339059859,1727185847330,-486.9330414,0.00027397,2]
[339059861,1727185847342,-1600.85,0.00027397,2]
[339059863,1727185847354,-1028.41,0.00027397,2]
[339059865,1727185847364,-554.68172911,0.00027397,2]
[339059867,1727185847374,-509.22660145,0.00027397,2]
[339059869,1727185847384,-500.92349939,0.00027397,2]
[339059871,1727185847394,-500.0,0.00027397,2]
[339059873,1727185847404,-1081.35,0.00027397,2]
[339059875,1727185847413,-500.0,0.00027397,2]
[339059877,1727185847423,-500.0,0.00027397,2]
[339059879,1727185847433,-502.62616996,0.00027397,2]
[339059881,1727185847442,-500.0,0.00027397,2]
[339059883,1727185847451,-500.0,0.00027397,2]
[339059885,1727185847461,-500.0,0.00027397,2]
[339059887,1727185847471,-500.0,0.00027397,2]
[339059889,1727185847480,-286.9279382,0.00027397,2]
[339059892,1727185847495,-213.0720618,0.00027397,2]
[339059894,1727185847504,-755.32,0.00027397,2]
[339059896,1727185847513,-500.0,0.00027397,2]
[339059898,1727185847525,-500.0,0.00027397,2]
[339059900,1727185847534,-500.0,0.00027397,2]
[339059902,1727185847543,-296.1079382,0.00027397,2]
[339059904,1727185847554,-222.7420618,0.00027397,2]
[339059906,1727185847563,-426.61604683,0.00027397,2]
[339059922,1727185847706,-585.07,0.0002498,3]
[339059935,1727185847815,-73.38395317,0.00027397,2]
[339059937,1727185847825,-500.0,0.00027397,2]
[339059939,1727185847835,-500.0,0.00027397,2]
[339059941,1727185847846,-500.0,0.00027397,2]
[339059943,1727185847857,-537.38,0.00027397,2]
[339059945,1727185847866,-500.0,0.00027397,2]
[339059947,1727185847876,-500.0,0.00027397,2]
[339059949,1727185847885,-500.0,0.00027397,2]
[339059951,1727185847896,-500.0,0.00027397,2]
[339059953,1727185847905,-1428.87,0.00027397,2]
[339059955,1727185847915,-500.0,0.00027397,2]
[339059957,1727185847925,-500.63370264,0.00027397,2]
[339059959,1727185847934,-500.0,0.00027397,2]
[339059961,1727185847944,-500.0,0.00027397,2]
[339059963,1727185847954,-500.0,0.00027397,2]
[339059965,1727185847964,-500.0,0.00027397,2]
[339059967,1727185847973,-894.35,0.00027397,2]
[339059969,1727185847983,-719.56,0.00027397,2]
[339059971,1727185847993,-252.68,0.00027397,2]
[339059973,1727185848003,-500.0,0.00027397,2]
[339059975,1727185848013,-500.0,0.00027397,2]
[339059977,1727185848024,-500.0,0.00027397,2]
[339059980,1727185848034,-532.7517154,0.00027397,2]
[339059981,1727185848044,-500.0,0.00027397,2]
[339059984,1727185848054,-536.73576817,0.00027397,2]
[339059986,1727185848064,-500.34467957,0.00027397,2]
[339059988,1727185848073,-500.0,0.00027397,2]
[339059990,1727185848082,-503.46610632,0.00027397,2]
[339059992,1727185848093,-509.20248074,0.00027397,2]
[339059994,1727185848103,-500.0,0.00027397,2]
[339059996,1727185848112,-500.0,0.00027397,2]
[339059998,1727185848122,-500.0,0.00027397,2]
[339060000,1727185848132,-500.0,0.00027397,2]
[339060002,1727185848141,-500.0,0.00027397,2]
[339060004,1727185848151,-835.58,0.00027397,2]
[339060006,1727185848161,-689.75,0.00027397,2]
[339060008,1727185848171,-502.28935176,0.00027397,2]
[339060010,1727185848180,-500.0,0.00027397,2]
[339060012,1727185848190,-500.0,0.00027397,2]
[339060014,1727185848199,-525.51275195,0.00027397,2]
[339060016,1727185848209,-500.0,0.00027397,2]
[339060018,1727185848219,-500.0,0.00027397,2]
[339060020,1727185848230,-500.0,0.00027397,2]
[339060022,1727185848240,-671.66,0.00027397,2]
[339060024,1727185848249,-500.0,0.00027397,2]
[339060026,1727185848259,-483.9880294,0.00027397,2]
[339060028,1727185848270,-500.0,0.00027397,2]
[339060030,1727185848280,-500.0,0.00027397,2]
[339060032,1727185848290,-503.82155202,0.00027397,2]
[339060034,1727185848299,-537.17909945,0.00027397,2]
[339060036,1727185848309,-500.0,0.00027397,2]
[339060038,1727185848318,-1570.3,0.00027397,2]
[339060041,1727185848328,-500.0,0.00027397,2]
[339060043,1727185848339,-500.0,0.00027397,2]
[339060045,1727185848351,-929.8,0.00027397,2]
[339060047,1727185848362,-500.0,0.00027397,2]
[339060049,1727185848371,-575.39,0.00027397,2]
[339060051,1727185848381,-500.0,0.00027397,2]
[339060053,1727185848392,-500.0,0.00027397,2]
[339060055,1727185848403,-500.0,0.00027397,2]
[339060058,1727185848413,-586.32,0.00027397,2]
[339060060,1727185848424,-500.0,0.00027397,2]
[339060062,1727185848434,-340.91335066,0.00027397,2]
[339060064,1727185848444,-500.0,0.00027397,2]
[339060066,1727185848455,-509.41887333,0.00027397,2]
[339060068,1727185848464,-500.0,0.00027397,2]